Cogmind - Beta 14 *** ADVENTURER MODE // 2024.10.17 @ 21:51:19 Player: Sofanthiel Result: Self-destructed Performance ------------- Evolutions (1) 500 Regions Visited (3) 600 Robots Destroyed (19) 95 Value Destroyed (554) 554 Prototype IDs (0) 0 Alien Tech Used (0) 0 Bonus (0) 0 TOTAL SCORE: 1749 Bonus ------- None Cogmind --------- Core Integrity 203/400 Matter 299/300 Energy 100/100 System Corruption 0% Temperature Cool (0) Movement Core (150) Ox2 Location -9/Materials Parts ------- > --- POWER (1) -------- (None) > --- PROPULSION (3) --- (None) > --- UTILITY (3) ------ Small Storage Unit Signal Interpreter > --- WEAPON (2) ------- Light Assault Rifle Heavy Hammer > --- INVENTORY (8) ---- Ion Engine Small Matter Pod (50) Faulty Experimental Sensor Array Signal Interpreter Improved EM Shotgun Light Assault Rifle Light Assault Rifle Heavy Hammer Peak State ------------ > --- POWER ------------ Light Ion Engine > --- PROPULSION ------- Wheel Compact Wheel > --- UTILITY ---------- Improved Heat Sink Small Storage Unit Signal Interpreter > --- WEAPON ----------- Light Assault Rifle Light Assault Rifle > --- INVENTORY -------- Ion Engine Small Matter Pod Experimental Sensor Array Signal Interpreter Improved EM Shotgun Light Assault Rifle Heavy Hammer Heavy Hammer [Rating: 12] Favorites ----------- Power Light Ion Engine Engine Light Ion Engine Propulsion Compact Wheel Wheel Compact Wheel Utility Small Storage Unit Device Improved Heat Sink Storage Small Storage Unit Processor Signal Interpreter Weapon Light Assault Rifle Energy Gun EM Pulse Gun Ballistic Gun Light Assault Rifle Impact Weapon Heavy Hammer Build | -11 -10 -10 -9 ------- Run | Yrd Mat Min Mat Slots Evolved 2 | . . . 2 Power . | . . . . Propulsion 1 | . . . 1 Utility 1 | . . . 1 Weapon . | . . . . Parts Attached 19 | 7 4 6 2 Power 5 | 2 1 2 . Engine 5 | 2 1 2 . Core . | . . . . Reactor . | . . . . Propulsion 4 | 2 . 2 . Treads . | . . . . Leg . | . . . . Wheel 4 | 2 . 2 . Hover . | . . . . Flight . | . . . . Utility 3 | 1 1 . 1 Device 1 | . . . 1 Storage 1 | 1 . . . Processor 1 | . 1 . . Hackware . | . . . . Protection . | . . . . Artifact . | . . . . Weapon 7 | 2 2 2 1 Energy Gun 1 | . 1 . . Energy Cannon . | . . . . Ballistic Gun 5 | 2 1 2 . Ballistic Cannon . | . . . . Launcher . | . . . . Special Weapon . | . . . . Impact Weapon 1 | . . . 1 Slashing Weapon . | . . . . Piercing Weapon . | . . . . Special Melee Weapon . | . . . . Unidentified Prototypes . | . . . . Parts Lost 6 | . . 2 4 Power 1 | . . . 1 Propulsion 4 | . . 2 2 Utility 1 | . . . 1 Weapon . | . . . . Highest Loss Streak 2 | . . 2 2 To Critical Strikes . | . . . . Average Slot Usage (%) 83 | . 97 85 73 Engine 12 | . 14 14 10 Wheel 15 | . 28 14 10 Device 2 | . . . 8 Storage 12 | . 14 14 11 Processor 12 | . 11 14 11 Energy Gun 1 | . 1 2 . Ballistic Gun 21 | . 26 25 15 Impact Weapon 2 | . . . 6 Peak Build Rating 12 | 6 8 8 12 Average Rating 7 | 4 6 6 9 On Entrance 5 | . 6 7 8 Naked Turns . | . . . . Heaviest Build 13 | 13 13 11 13 Greatest Support 26 | 26 26 26 26 Greatest Overweight (x) 4 | . . . 4 Average Overweight (x) . | . . . 1 Largest Inventory Capacity 8 | 8 8 8 8 Average Capacity 7 | 7 8 8 8 Most Carried 8 | 2 8 8 8 Average Carried 6 | 1 5 7 7 Final Capacity 8 | 8 8 8 8 Final Carried 8 | 2 7 6 8 Class Distribution -------------------- 100% | Mutant Dominant Class ---------------- Mutant | -10/Materials Mutant | -10/Mines Mutant | -9/Materials Resources | -11 -10 -10 -9 ----------- Run | Yrd Mat Min Mat Matter Collected 562 | 266 135 124 37 Remotely . | . . . . Salvage Created 664 | . 147 260 257 Parts 32 | . 11 14 7 Haulers Intercepted . | . . . . Recyclers Shooed 1 | . . 1 . Parts Field Recycled . | . . . . Retrieved Matter . | . . . . Parts Self-Destructed . | . . . . Prevented . | . . . . Kills | -11 -10 -10 -9 ------- Run | Yrd Mat Min Mat Combat Hostiles Destroyed 18 | . 5 7 6 Melee 2 | . . . 2 Guns 13 | . 5 7 1 Classes Destroyed 4 | . 2 1 1 Worker 1 | . . 1 . Swarmer 6 | . 3 3 . Grunt 9 | . 2 4 3 Sentry 3 | . . . 3 Best Kill Streak 5 | . 5 5 3 Combat Bots Only 5 | . 5 5 3 Max Kills in Single Turn 1 | . 1 1 1 Gunslinging . | . . . . Exploded . | . . . . Melee 1 | . . . 1 Uniques/NPCs Destroyed . | . . . . Combat | -11 -10 -10 -9 -------- Run | Yrd Mat Min Mat Hostile Shots Fired 130 | . 28 47 55 Missed 29 | . 5 14 10 Damage Taken 982 | . 199 298 485 Core 332 | . 46 89 197 Absorbed by Shields . | . . . . Ignored by Resistances 294 | . 62 94 138 Core Remaining (%) 73 | 100 . 46 . Volleys Fired 48 | . 14 25 9 Largest 2 | . 2 2 2 Hottest 60 | . 40 60 40 Shots Fired 93 | . 28 50 15 Gun 93 | . 28 50 15 Cannon . | . . . . Launcher . | . . . . Special . | . . . . Kinetic 80 | . 28 37 15 Thermal . | . . . . Explosive . | . . . . Electromagnetic 13 | . . 13 . Robot Hit Streak 16 | . 13 16 15 Robot Miss Streak 3 | . 1 3 1 Penetration Max . | . . . . Secondary Targets 6 | . 3 3 . Max Gunslinging Chain 1 | . 1 1 . Shots Hit Robots 93 | . 22 37 34 Core Hits 30 | . 8 17 5 Critical Kills . | . . . . Critical Parts Destroyed 4 | . . 1 3 Critical Strikes 5 | . . 2 3 Destroy 1 | . . 1 . Corrupt 1 | . . 1 . Smash 3 | . . . 3 Melee Attacks 22 | . . . 22 Impact 22 | . . . 22 Slashing . | . . . . Piercing . | . . . . Sneak Attacks 1 | . . . 1 Combat Hostiles . | . . . . Follow-up Attacks . | . . . . Damage Inflicted 1395 | . 222 334 839 Guns 653 | . 222 334 97 Cannons . | . . . . Explosions . | . . . . Melee 732 | . . . 732 Ramming 10 | . . . 10 Kinetic 549 | . 222 230 97 Thermal . | . . . . Explosive . | . . . . Electromagnetic 104 | . . 104 . Impact 732 | . . . 732 Slashing . | . . . . Piercing . | . . . . Highest Corruption . | . . . . Average Corruption . | . . . . Corruption Purged . | . . . . Corruption Blocked . | . . . . Overload Shots . | . . . . Overflow Damage 151 | . . . 151 Projectiles . | . . . . Explosions . | . . . . Melee 151 | . . . 151 Knockbacks 2 | . . . 2 Impact 2 | . . . 2 Kinetic . | . . . . Secondary . | . . . . Self-Inflicted Damage 5 | . . . 5 Shots . | . . . . Rammed 1 | . . . 1 Targets Rammed 1 | . . . 1 Kicked . | . . . . Crushed . | . . . . Highest Temperature 141 | . 27 141 . Average Temperature 56 | . 12 67 . Received Heat Transfer 546 | . 120 168 258 Siege Activations . | . . . . Robots Corrupted 3 | . . . 3 Combat Hostiles 3 | . . . 3 Parts Fried 3 | . . 1 2 Impact Corruptions 8 | . . . 8 Robots Melted . | . . . . Combat Hostiles . | . . . . Parts Melted . | . . . . Heat Transferred . | . . . . Parts Sabotaged . | . . . . Parts Stolen . | . . . . Parts Stripped . | . . . . Power Chain Reactions . | . . . . Alert | -11 -10 -10 -9 ------- Run | Yrd Mat Min Mat Peak Influence 244 | . 135 244 235 Initial 80 | . . 44 80 Average 125 | . 41 171 149 Maximum Alert Level 1 | . . 1 1 Low Security (%) 82 | 100 100 75 76 Level 1 17 | . . 24 24 Level 2 . | . . . . Level 3 . | . . . . Level 4 . | . . . . Level 5 . | . . . . High Security . | . . . . Max Security . | . . . . Squads Dispatched . | . . . . Investigation . | . . . . Extermination . | . . . . Reinforcement . | . . . . Assault . | . . . . Garrison . | . . . . Intercept . | . . . . Searches Triggered . | . . . . Construction Impeded . | . . . . Haulers Reinforced . | . . . . Active Scanning Responses . | . . . . Cargo Convoy Interrupts . | . . . . Stealth | -11 -10 -10 -9 --------- Run | Yrd Mat Min Mat Distress Signals 1 | . 1 . . Communications Jammed . | . . . . Distress Signals . | . . . . Times Spotted 22 | . 8 8 6 Peak Tracking Total 7 | . 7 5 3 Tactical Retreats 2 | . 1 1 . Traps | -11 -10 -10 -9 ------- Run | Yrd Mat Min Mat Traps Triggered . | . . . . Indirectly . | . . . . Trap Hack Attempts . | . . . . Triggered . | . . . . Disarmed . | . . . . Reprogrammed . | . . . . Reused . | . . . . Traps Extracted . | . . . . Installed . | . . . . Triggered . | . . . . Machines | -11 -10 -10 -9 ---------- Run | Yrd Mat Min Mat Machines Disabled . | . . . . Max in Single Turn . | . . . . Machines Repaired . | . . . . Machines Dismantled . | . . . . Machines Sabotaged . | . . . . Overloaded Fab Kills . | . . . . Hacking | -11 -10 -10 -9 --------- Run | Yrd Mat Min Mat Machines Accessed 3 | . 2 . 1 Terminals 3 | . 2 . 1 Fabricators . | . . . . Repair Stations . | . . . . Recycling Units . | . . . . Scanalyzers . | . . . . Garrison Access . | . . . . Total Hacks 9 | . 3 . 6 Successful 3 | . 1 . 2 Failed 6 | . 2 . 4 Catastrophic . | . . . . Database Lockouts . | . . . . Manual 5 | . . . 5 Terminals 9 | . 3 . 6 Fabricators . | . . . . Repair Stations . | . . . . Recycling Units . | . . . . Scanalyzers . | . . . . Garrison Access . | . . . . Terminal Hacks 3 | . 1 . 2 Alert Level 1 | . . . 1 Hauler Manifests 1 | . . . 1 Zone Layout 1 | . 1 . . Fabricator Hacks . | . . . . Repair Station Hacks . | . . . . Recycling Unit Hacks . | . . . . Scanalyzer . | . . . . Garrison Access Hacks . | . . . . Unauthorized Hacks . | . . . . Terminals . | . . . . Fabricators . | . . . . Repair Stations . | . . . . Recycling Units . | . . . . Scanalyzers . | . . . . Garrison Access . | . . . . Data Cores Recovered . | . . . . Used . | . . . . Hacking Detections 2 | . 1 . 1 Full Trace Events . | . . . . Feedback Events . | . . . . Feedback Blocked . | . . . . Robot Schematics Acquired . | . . . . Robots Built . | . . . . Authchips . | . . . . Time . | . . . . Total Robot Build Rating . | . . . . Part Schematics Acquired . | . . . . Parts Built . | . . . . Authchips . | . . . . Time . | . . . . Total Part Build Rating . | . . . . Parts Repaired . | . . . . Time . | . . . . Parts Recycled . | . . . . Recycled Matter . | . . . . Retrieved Matter . | . . . . Retrieved Components . | . . . . Parts Scanalyzed . | . . . . Part Schematics Acquired . | . . . . Parts Damaged . | . . . . Bothacking | -11 -10 -10 -9 ------------ Run | Yrd Mat Min Mat Used RIF Installer . | . . . . Robots Hacked . | . . . . Non-combat . | . . . . Combat . | . . . . Robot Hacks Applied . | . . . . Relay Couplers Released . | . . . . Fabnet Peak Effective % . | . . . . Robots Rewired . | . . . . Allies Hacked . | . . . . Hacks Repelled . | . . . . Allies | -11 -10 -10 -9 -------- Run | Yrd Mat Min Mat Total Allies . | . . . . Largest Group . | . . . . Highest-Rated Group . | . . . . Highest-Rated Ally . | . . . . Total Orders . | . . . . Ally Attacks . | . . . . Total Damage . | . . . . Kills . | . . . . Allies Corrupted . | . . . . Allies Melted . | . . . . Intel | -11 -10 -10 -9 ------- Run | Yrd Mat Min Mat Robot Analysis Total . | . . . . Derelict Logs Recovered 2 | . . 2 . Drone Launches . | . . . . Drone Recoveries . | . . . . Exploration | -11 -10 -10 -9 ------------- Run | Yrd Mat Min Mat Turns Passed 767 | 59 153 305 250 Spaces Moved 498 | 54 110 219 115 Core 31 | 2 . . 29 Treads . | . . . . Legs . | . . . . Wheels 467 | 52 110 219 86 Hover . | . . . . Flight . | . . . . Fastest Speed 50 | 50 90 90 90 Average Speed 102 | 88 90 98 129 Slowest Speed 250 | 100 90 100 250 Overloaded Moves . | . . . . Propulsion Burnouts . | . . . . Robots Hopped . | . . . . Cave-ins Triggered . | . . . . Exploration Rate (%) 21 | 4 26 46 11 Regions Visited 3 Branch Regions 1 Pre-discovered Areas 1 | . . 1 . Known Exits Taken 2 | . 1 1 . Unknown Exits Taken 1 | 1 . . . Scrap Searched . | . . . . Spaces Dug . | . . . . Terrain Destroyed . | . . . . Melee . | . . . . Projectile . | . . . . AOE . | . . . . Terrain Rammed . | . . . . Walls Destroyed . | . . . . Machines Disabled . | . . . . Actions | -11 -10 -10 -9 --------- Run | Yrd Mat Min Mat Total 627 | 61 138 264 164 Wait 26 | . 2 12 12 Move 495 | 53 109 218 115 Hop . | . . . . Pick Up 11 | 1 6 1 3 Fast Attach 8 | 6 1 1 . Attach 2 | . . 1 1 Detach . | . . . . Swap 9 | 1 3 4 1 Drop 5 | . 3 2 . Fire 48 | . 14 25 9 Melee 22 | . . . 22 Ram 1 | . . . 1 Kick . | . . . . Crush . | . . . . Escape Stasis . | . . . . Rewire . | . . . . Trap . | . . . . Miscellaneous . | . . . . Route ------- -11/Scrapyard -10/Materials -10/Mines -9/Materials History --------- Turn | Location | Event 17 | -11/Scrapyard | Discovered new exit (range 16) 60 | -11/Scrapyard | Entered Materials 126 | -10/Materials | Discovered new exit (range 15) 212 | -10/Materials | Identified exit to Mines 213 | -10/Materials | Entered Mines 302 | -10/Mines | Learned Materials terminal intel 302 | -10/Mines | Discovered new exit (range 6) 307 | -10/Mines | Identified exit to Materials 312 | -10/Mines | Build established: Mutant 316 | -10/Mines | Learned location of Zion (-7) 331 | -10/Mines | Found a damaged Exp. Sensor Array with a note attached 333 | -10/Mines | Found Prototype Device 456 | -10/Mines | Core integrity fell below 50% 518 | -10/Mines | Entered Materials 518 | -9/Materials | Evolved 2 slots: Propulsion x1, Utility x1 519 | -9/Materials | Loaded intel: 12 terminal locations 768 | -9/Materials | Self-destructed Last Messages --------------- crushing effect. 00669_ Y-45 Defender system terminally corrupted. 00677_ R-06 Scavenger collects Corrupted Lgt. Treads. 00689_ Sneak attack on R-06 Scavenger. 00689_ R-06 Scavenger knocked back. 00692_ Acquired 1 matter. 00740_ G-34 Mercenary destroyed. 00742_ Lgt. Ion Engine destroyed. 00745_ Imp. Heat Sink destroyed. 00759_ Destroyed Beam Rifle. 00759_ Y-45 Defender system corrupted by crushing effect. 00760_ R-06 Scavenger collects Heat Sink. 00762_ Destroyed Imp. Ion Engine. 00762_ Y-45 Defender system corrupted by crushing effect. 00763_ Y-45 Defender system terminally corrupted. Map ----- +----------------------------------------------------+ | | | | | | | ?????????????????????????????????????????????????? | | ?????????????????????????????????????????????????? | | ?????????????????????????????????????????????????? | | ?????????????????????????????????????????????????? | | ?????????????????????????????????????????????????? | | ?????????????????????????????????????????????????? | | ?????????????????????????????""??????????????????? | | ????????????????????##???????T"??????????????????? | | ???????????????????? ???????""??????????????????? | | ?????????T?????????? ???????????????????????????? | | ???????????????????? ???????????????????????????? | | ????????????????????# ???????????????????????????? | | ????????????????????# ???????????????????????????? | | ????????????????????# #??????????????????????????? | | ????????????????????# ##+#???????????????????????? | | ????????????????????# #???????????????????????? | | ????????????????????# #???????????????????????? | | ????????????????????# #???????????????????????? | | ?????????????######## #######?????#####???????? | | ?????????????# # # #?????# #???????? | | ?????????????#""" # # #?????# #???????? | | ?????????????#""" # # #?????# #???????? | | ?????????????#"" %+% %@% #?????# #???####? | | ?????????????# %# # #?????# #??? """ | | ?????????????# # r# #?????# #?? ""R" | | ?????????????######## # #????## ##? "" " | | ????????????????????#t #######????# # | | ???????????# ###### #??????##### # | | | ?????? a #??????# T + | | ???????????# ######### #??????# ### # """ | | ???????????????????????# #??????# #?# # """ ! | | ???????????????????????# #??????# #?#######?""" | | ????????????#+#####????# #??????# # ##????? | | ????????????# ### ######## # #?????? ? | | ????????????? """ + #??????##### | | ????????????? "Y" ### ##### # #???????????? | | ?????????????? ????# #???# ###????????????? | | ????????????# ??????# #???# #??????????????? | | ????????????+ ????????# #???# ##+#####??????????? | | ????????????#?????????##/#####+# #??????????? | | ?????????????????????# """ # | #??????????? | | ?????????????????????# """ "R" # |/= #??????????? | | ???????????????????????""" " " # |/= #??????????? | | ???????????????????????""" # #??????????? | | ??????????????????????? # #??????????? | | ??????????????????????? !! ########??????????? | | ?????????????????????? !! #?????????????????? | +----------------------------------------------------+ Best States ------------- Heat Dissipation 42 Energy Generation 10 Energy Capacity 250 Matter Stores 300 Matter Capacity 300 Sight Range 16 Terrain Scan Density 10 Resistance: KI 20 Resistance: TH 20 Resistance: EX 20 Resistance: EM 20 Resistance: I 20 Resistance: S 20 Resistance: P 20 Evasion (%) 42 Offensive Hacking 10 Item Schematics ----------------- None Robot Schematics ------------------ None Fabricated ------------ Nothing Alien Tech Used ----------------- None Achievements -------------- None Challenges ------------ None Game ------ Seed AntimatterBurstSplitter Manual? 0 Play Time 00:21:19 Cumulative 17.7 hours Start 2024.10.17 @ 18:22:07 End 2024.10.17 @ 21:51:19 Sessions 3 Manual Loads 0 Difficulty Adventurer Special Mode None Game No. 14 Rogue 10 Adventurer 4 Explorer 0 Win Type - Total 0 Types 0/0/0/0/0/0/0/0/0 Lore% 6 Gallery% 18 Achievement% 16 Wizard Run 0 Options --------- Layout 1 ASCII 0 Keyboard 1 Movement Numpad Keybinds 0 Fullscreen 1 Font 48/Smallcaps Map View 50x35 Zoom Use 1% Tactical HUD 1 Map Filters NONE Filters NONE Steam 1 RUN: c3832df8-6d5f-4d25-a08f-8a88910db7a9